[Event "Saint Louis Invitational-B 2019"]
[Site "Saint Louis"]
[Date "2019.11.24"]
[Round "7.4"]
[White "Grabinsky, Aaron"]
[Black "Kiewra, Keaton"]
[Result "1-0"]
[ECO "A01"]
[WhiteElo "2338"]
[BlackElo "2372"]
[Annotator "RC"]
[PlyCount "177"]
[EventDate "2019.11.21"]
[EventType "tourn"]
[EventCountry "USA"]
[SourceTitle "playchess.com"]
[Source "ChessBase"]
[SourceQuality "1"]
[TimeControl "5400+30"]

1. b3 {[%emt 0:00:00]} e5 {[%emt 0:01:27]} 2. Bb2 {[%emt 0:00:00]} Nc6 {[%emt 0:00:15]} 3. e3 {[%emt 0:00:14]} Nf6 {[%emt 0:00:28]} 4. Nf3 {[%emt 0:00:23]} e4 {[%emt 0:12:30]} 5. Nd4 {[%emt 0:00:07]} Bc5 {[%emt 0:00:40]} 6. Nxc6 {[%emt 0:00:34]} dxc6 {[%emt 0:00:37]} 7. d3 {[%emt 0:02:33]} Bf5 {[%emt 0:03:40]} 8. Be2 {[%emt 0:01:21]} Qe7 {[%emt 0:01:55]} 9. d4 {[%emt 0:02:25]} O-O-O {[%emt 0:02:00]} 10. a3 {[%emt 0:01:05]} h5 {[%emt 0:03:07]} 11. b4 {[%emt 0:02:16]} Bd6 {[%emt 0:01:34]} 12. h3 {[%emt 0:03:05]} Rh6 {[%emt 0:03:28]} 13. c4 {[%emt 0:01:32]} Qe6 {[%emt 0:00:48]} 14. Qa4 {[%emt 0:02:34]} Kb8 {[%emt 0:02:58]} 15. Nc3 {[%emt 0:00:19]} Rg6 {[%emt 0:06:03]} 16. Bf1 {[%emt 0:00:52]} Be7 {[%emt 0:02:27]} 17. O-O-O {[%emt 0:01:20]} a6 {[%emt 0:10:22]} 18. Kb1 {[%emt 0:01:36]} Nd7 {[%emt 0:04:37]} 19. Qb3 {[%emt 0:08:35]} b5 {[%emt 0:07:56]} 20. d5 {[%emt 0:06:50]} cxd5 {[%emt 0:00:35]} 21. cxb5 {[%emt 0:10:15]} Ne5 {[%emt 0:07:06]} 22. Ne2 {[%emt 0:06:15]} Nd3 {[%emt 0:03:43]} 23. Nd4 {[%emt 0:01:30]} Qd7 {[%emt 0:00:06]} 24. Nc6+ {[%emt 0:01:53]} Rxc6 {[%emt 0:00:15]} 25. bxc6 {[%emt 0:00:05]} Qxc6 {[%emt 0:00:07]} 26. Bxd3 {[%emt 0:01:49]} exd3 {[%emt 0:00:07]} 27. Rd2 {[%emt 0:03:20]} Qc4 {[%emt 0:04:46]} 28. Qa4 {[%emt 0:03:35]} Qb5 {[%emt 0:01:15]} 29. Qxb5+ {[%emt 0:02:14]} axb5 {[%emt 0:00:02]} 30. Bd4 {[%emt 0:00:57]} Kb7 {[%emt 0:00:50]} 31. Kb2 {[%emt 0:00:35]} h4 {[%emt 0:03:06]} 32. Ra1 {[%emt 0:03:57]} Rd6 {[%emt 0:01:11]} 33. Rc1 {[%emt 0:03:32]} Rg6 {[%emt 0:00:51]} 34. Be5 {[%emt 0:00:31]} c6 {[%emt 0:00:21]} 35. f3 {[%emt 0:00:49]} Bg5 {[%emt 0:02:24]} 36. Bd4 {[%emt 0:01:01]} Re6 {[%emt 0:00:09]} 37. Re1 {[%emt 0:00:09]} g6 {[%emt 0:05:03]} 38. Kc3 {[%emt 0:00:15]} Bf4 {[%emt 0:01:41]} 39. Ra2 {[%emt 0:00:54]} Bb8 {[%emt 0:03:34]} 40. a4 {[%emt 0:00:47]} Re8 {[%emt 0:00:54]} 41. Kd2 {[%emt 0:03:37]} Bd6 {[%emt 0:00:21]} 42. Bc5 {[%emt 0:00:43]} Bg3 {[%emt 0:01:20]} 43. Rea1 {[%emt 0:03:39]} Be5 {[%emt 0:00:06]} 44. Rb1 {[%emt 0:03:16]} Ra8 {[%emt 0:00:28]} 45. a5 {[%emt 0:03:29]} Ka6 {[%emt 0:00:10]} 46. Re1 {[%emt 0:01:09]} Re8 {[%emt 0:00:17]} 47. Ra3 {[%emt 0:00:24]} Re6 {[%emt 0:01:05]} 48. Rb3 {[%emt 0:01:06]} Bf6 {[%emt 0:01:36]} 49. Rbb1 {[%emt 0:00:40]} Bg7 {[%emt 0:00:21]} 50. Rf1 {[%emt 0:00:19]} Bh6 {[%emt 0:00:37]} 51. Rbe1 {[%emt 0:00:09]} Bg5 {[%emt 0:00:19]} 52. Kc3 {[%emt 0:00:08]} Bf6+ {[%emt 0:00:24]} 53. Bd4 {[%emt 0:00:10]} Be7 {[%emt 0:00:21]} 54. Rb1 {[%emt 0:02:51]} Bg5 {[%emt 0:00:26]} 55. Kd2 {[%emt 0:00:08]} Be7 {[%emt 0:00:12]} 56. Rfc1 {[%emt 0:00:28]} Bf8 {[%emt 0:00:23]} 57. Rb3 {[%emt 0:01:52]} Be7 {[%emt 0:00:11]} 58. Kd1 {[%emt 0:00:11]} Kb7 {[%emt 0:01:14]} 59. Rbc3 {[%emt 0:01:24]} Bxb4 {[%emt 0:00:18]} 60. a6+ {[%emt 0:00:04]} Kxa6 {[%emt 0:00:19]} 61. Rxc6+ {[%emt 0:00:04]} Rxc6 {[%emt 0:00:18]} 62. Rxc6+ {[%emt 0:00:04]} Ka5 {[%emt 0:00:45]} 63. Rc7 {[%emt 0:00:06]} Ka4 {[%emt 0:00:23]} 64. Bb2 {[%emt 0:06:09]} d2 {[%emt 0:03:52]} 65. Bc3 {[%emt 0:00:08]} Bxc3 {[%emt 0:00:13]} 66. Rxc3 {[%emt 0:00:03]} b4 {[%emt 0:00:04]} 67. Rc7 {[%emt 0:00:17]} b3 {[%emt 0:00:45]} 68. Ra7+ {[%emt 0:00:07]} Kb4 {[%emt 0:00:09]} 69. Kxd2 {[%emt 0:00:11]} b2 {[%emt 0:00:17]} 70. Rb7+ {[%emt 0:00:02]} Ka3 {[%emt 0:00:05]} 71. Kc3 {[%emt 0:00:06]} b1=N+ {[%emt 0:00:17]} 72. Kd4 {[%emt 0:00:07]} Nd2 {[%emt 0:02:39]} 73. Rxf7 {[%emt 0:00:44]} Kb2 {[%emt 0:00:36]} 74. Kxd5 {[%emt 0:01:34]} Bd3 {[%emt 0:00:15]} 75. Rf4 {[%emt 0:00:58]} Nf1 {[%emt 0:00:49]} 76. Kd4 {[%emt 0:00:29]} Kc2 {[%emt 0:00:21]} 77. Rxh4 {[%emt 0:00:50]} Kd2 {[%emt 0:00:07]} 78. e4 {[%emt 0:00:48]} Ne3 {[%emt 0:00:32]} 79. g4 {[%emt 0:01:11]} Nc2+ {[%emt 0:00:52]} 80. Ke5 {[%emt 0:00:16]} Ke3 {[%emt 0:00:07]} 81. Rh6 {[%emt 0:01:24]} Ne1 {[%emt 0:00:39]} 82. Kf6 {[%emt 0:00:57]} Nxf3 {[%emt 0:00:52]} 83. e5 {[%emt 0:00:03]} Kf4 {[%emt 0:00:26]} 84. e6 {[%emt 0:00:25]} g5 {[%emt 0:00:22]} 85. e7 {[%emt 0:00:04]} Bb5 {[%emt 0:00:05]} 86. Rh8 {[%emt 0:00:21]} Ng1 {[%emt 0:01:02]} 87. h4 {[%emt 0:00:26]} gxh4 {[%emt 0:00:22]} 88. g5 {[%emt 0:00:04]} Nf3 {[%emt 0:00:47]} 89. g6 {[%emt 0:00:12]} 1-0

[Event "Saint Louis Invitational-B 2019"]
[Site "Saint Louis"]
[Date "2019.11.26"]
[Round "9.1"]
[White "Shankar, Gauri"]
[Black "Proleiko, Julian"]
[Result "1-0"]
[ECO "A04"]
[WhiteElo "2340"]
[BlackElo "2170"]
[Annotator "RC"]
[PlyCount "131"]
[EventDate "2019.11.21"]
[EventType "tourn"]
[EventCountry "USA"]
[SourceTitle "playchess.com"]
[Source "ChessBase"]
[SourceQuality "1"]
[TimeControl "5400+30"]

1. Nf3 {[%emt 0:02:38]} g6 {[%emt 0:00:00]} 2. e4 {[%emt 0:03:17]} d6 {[%emt 0:00:00]} 3. d4 {[%emt 0:00:24]} Nf6 {[%emt 0:00:00]} 4. Bd3 {[%emt 0:03:17]} Bg7 {[%emt 0:00:32]} 5. O-O {[%emt 0:02:19]} O-O {[%emt 0:00:09]} 6. Re1 {[%emt 0:03:45]} Nbd7 {[%emt 0:04:18]} 7. c3 {[%emt 0:06:54]} e5 {[%emt 0:00:11]} 8. Bg5 {[%emt 0:02:13]} h6 {[%emt 0:00:14]} 9. Bh4 {[%emt 0:00:03]} Qe8 {[%emt 0:01:16]} 10. Nbd2 {[%emt 0:01:35]} Nh5 {[%emt 0:00:23]} 11. Bf1 {[%emt 0:01:31]} g5 {[%emt 0:06:21]} 12. Bg3 {[%emt 0:01:50]} Nf4 {[%emt 0:04:30]} 13. Nc4 {[%emt 0:03:44]} Qe7 {[%emt 0:01:38]} 14. Ne3 {[%emt 0:07:10]} Nf6 {[%emt 0:01:43]} 15. Qc2 {[%emt 0:08:42]} Re8 {[%emt 0:01:57]} 16. dxe5 {[%emt 0:07:04]} dxe5 {[%emt 0:00:08]} 17. Rad1 {[%emt 0:00:50]} Qc5 {[%emt 0:00:56]} 18. a4 {[%emt 0:08:12]} a5 {[%emt 0:01:58]} 19. Nd2 {[%emt 0:11:08]} Ng4 {[%emt 0:04:44]} 20. Nf5 {[%emt 0:02:05]} Be6 {[%emt 0:09:55]} 21. h3 {[%emt 0:02:03]} Nf6 {[%emt 0:00:17]} 22. b3 {[%emt 0:01:58]} Rad8 {[%emt 0:05:49]} 23. Nc4 {[%emt 0:03:31]} Bxf5 {[%emt 0:02:54]} 24. exf5 {[%emt 0:00:02]} e4 {[%emt 0:01:03]} 25. Ne3 {[%emt 0:01:40]} Rxd1 {[%emt 0:00:56]} 26. Rxd1 {[%emt 0:00:31]} N4d5 {[%emt 0:03:15]} 27. Nxd5 {[%emt 0:04:22]} Nxd5 {[%emt 0:00:01]} 28. Bc4 {[%emt 0:00:19]} c6 {[%emt 0:00:43]} 29. Bh2 {[%emt 0:06:57]} Nxc3 {[%emt 0:07:15]} 30. Rd7 {[%emt 0:00:43]} Nd5 {[%emt 0:00:10]} 31. Bg3 {[%emt 0:02:41]} Bd4 {[%emt 0:02:31]} 32. Kh2 {[%emt 0:00:59]} Be5 {[%emt 0:02:48]} 33. Qe2 {[%emt 0:00:06]} Bxg3+ {[%emt 0:00:26]} 34. fxg3 {[%emt 0:00:01]} Re7 {[%emt 0:00:36]} 35. Rd8+ {[%emt 0:00:28]} Kg7 {[%emt 0:00:26]} 36. Qb2+ {[%emt 0:00:44]} Nf6 {[%emt 0:00:23]} 37. Rg8+ {[%emt 0:01:51]} Kxg8 {[%emt 0:00:13]} 38. Qxf6 {[%emt 0:00:02]} Qe5 {[%emt 0:01:33]} 39. Qg6+ {[%emt 0:00:08]} Qg7 {[%emt 0:00:22]} 40. f6 {[%emt 0:00:22]} Qxg6 {[%emt 0:00:46]} 41. fxe7 {[%emt 0:00:01]} Qf5 {[%emt 0:01:00]} 42. e8=Q+ {[%emt 0:00:07]} Kg7 {[%emt 0:00:04]} 43. Qd8 {[%emt 0:01:16]} h5 {[%emt 0:00:33]} 44. Qd4+ {[%emt 0:00:12]} Kh7 {[%emt 0:00:34]} 45. Kg1 {[%emt 0:00:36]} Kg6 {[%emt 0:04:40]} 46. Be2 {[%emt 0:00:05]} h4 {[%emt 0:01:25]} 47. Bh5+ {[%emt 0:00:57]} Kh7 {[%emt 0:00:25]} 48. Qf2 {[%emt 0:00:05]} Qxf2+ {[%emt 0:00:19]} 49. Kxf2 {[%emt 0:00:02]} hxg3+ {[%emt 0:01:00]} 50. Kxg3 {[%emt 0:00:01]} f5 {[%emt 0:00:07]} 51. Be8 {[%emt 0:00:24]} Kg7 {[%emt 0:00:25]} 52. Bd7 {[%emt 0:00:51]} Kf6 {[%emt 0:00:05]} 53. Bc8 {[%emt 0:00:09]} b5 {[%emt 0:00:41]} 54. Kf2 {[%emt 0:03:15]} Ke5 {[%emt 0:00:37]} 55. axb5 {[%emt 0:00:27]} cxb5 {[%emt 0:00:01]} 56. Bd7 {[%emt 0:00:15]} b4 {[%emt 0:00:22]} 57. g3 {[%emt 0:00:33]} Kf6 {[%emt 0:03:53]} 58. h4 {[%emt 0:00:17]} gxh4 {[%emt 0:01:04]} 59. gxh4 {[%emt 0:00:01]} f4 {[%emt 0:00:01]} 60. Bc6 {[%emt 0:01:11]} Kf5 {[%emt 0:00:09]} 61. Ke2 {[%emt 0:00:24]} a4 {[%emt 0:03:16]} 62. Bxa4 {[%emt 0:00:03]} Kg4 {[%emt 0:00:04]} 63. Bc6 {[%emt 0:00:29]} e3 {[%emt 0:00:23]} 64. Bb5 {[%emt 0:01:00]} Kxh4 {[%emt 0:00:47]} 65. Kf3 {[%emt 0:00:03]} Kg5 {[%emt 0:00:07]} 66. Bd3 {[%emt 0:00:02]} 1-0

[Event "Saint Louis Invitational-B 2019"]
[Site "Saint Louis"]
[Date "2019.11.26"]
[Round "9.2"]
[White "Arias Santana, Mauricio"]
[Black "Polgar-Shutzman, Tom"]
[Result "0-1"]
[ECO "C65"]
[WhiteElo "2292"]
[BlackElo "2234"]
[Annotator "RC"]
[PlyCount "54"]
[EventDate "2019.11.21"]
[EventType "tourn"]
[EventCountry "USA"]
[SourceTitle "playchess.com"]
[Source "ChessBase"]
[SourceQuality "1"]
[TimeControl "5400+30"]

1. e4 {[%emt 0:01:57]} e5 {[%emt 0:00:00]} 2. Nf3 {[%emt 0:00:04]} Nc6 {[%emt 0:00:00]} 3. Bb5 {[%emt 0:00:06]} Nf6 {[%emt 0:00:00]} 4. d3 {[%emt 0:00:29]} Bc5 {[%emt 0:00:05]} 5. c3 {[%emt 0:00:20]} O-O {[%emt 0:00:16]} 6. O-O {[%emt 0:00:03]} d6 {[%emt 0:00:58]} 7. Nbd2 {[%emt 0:00:23]} Ne7 {[%emt 0:00:58]} 8. d4 {[%emt 0:00:34]} exd4 {[%emt 0:00:22]} 9. cxd4 {[%emt 0:00:02]} Bb6 {[%emt 0:00:10]} 10. Re1 {[%emt 0:01:50]} Bg4 {[%emt 0:01:11]} 11. Qc2 {[%emt 0:02:36]} Bh5 {[%emt 0:03:44]} 12. b3 {[%emt 0:01:10]} Bg6 {[%emt 0:02:36]} 13. Bd3 {[%emt 0:00:35]} Nc6 {[%emt 0:00:16]} 14. d5 {[%emt 0:02:37]} Nb4 {[%emt 0:01:46]} 15. Qc4 {[%emt 0:00:09]} Nxd3 {[%emt 0:00:10]} 16. Qxd3 {[%emt 0:00:02]} Ng4 {[%emt 0:06:28]} 17. Re2 {[%emt 0:07:06]} f5 {[%emt 0:05:19]} 18. Bb2 {[%emt 0:00:44]} fxe4 {[%emt 0:03:40]} 19. Nxe4 {[%emt 0:00:22]} Nxf2 {[%emt 0:00:54]} 20. Rxf2 {[%emt 0:01:55]} Bxf2+ {[%emt 0:00:21]} 21. Kxf2 {[%emt 0:00:02]} Qh4+ {[%emt 0:00:08]} 22. Ke3 {[%emt 0:01:02]} Qf4+ {[%emt 0:00:58]} 23. Kd4 {[%emt 0:00:10]} Rae8 {[%emt 0:11:51]} 24. Re1 {[%emt 0:01:37]} Bxe4 {[%emt 0:04:30]} 25. Rxe4 {[%emt 0:00:07]} Rxe4+ {[%emt 0:00:27]} 26. Qxe4 {[%emt 0:00:03]} Qf6+ {[%emt 0:00:05]} 27. Kd3 {[%emt 0:00:48]} Qxb2 {[%emt 0:00:13] Kd4} 0-1